Cogmind - Beta 16 @@@ ROGUE MODE // 2025.12.16 @ 21:51:40 Player: f3-rnm Result: Destroyed by E0-6Z1(h) with Bolt Gun Performance ------------- Evolutions (0) 0 Regions Visited (3) 600 Robots Destroyed (14) 70 Value Destroyed (438) 438 Prototype IDs (25) 500 Alien Tech Used (0) 0 Bonus (300) 300 TOTAL SCORE: 1908 Bonus ------- Registered with UFD 300 Cogmind --------- Core Integrity 0/250 Matter 221/300 Energy 100/100 System Corruption 2% Temperature Cool (0) Movement Core (50) Location -9/Scraptown Parts ------- > --- POWER (1) -------- (None) > --- PROPULSION (2) --- (None) > --- UTILITY (2) ------ (None) > --- WEAPON (2) ------- (None) > --- INVENTORY (5) ---- Subdweller Power Source Subdweller Optics Experimental Sensor Array IFF Parser Makeshift Shrapnel Gun Peak State ------------ > --- POWER ------------ Angular Momentum Engine Fission Core > --- PROPULSION ------- Light Treads Wheel Subdweller Monowheel > --- UTILITY ---------- Large Storage Unit Medium Reactive Plating Tower Shield > --- WEAPON ----------- Heavy Particle Cannon Autogun Greatsword > --- INVENTORY -------- Subdweller Power Source Light Angular Momentum Engine Improved Aluminum Leg Advanced Heat Sink Machine Analyzer Subdweller Optics Experimental Sensor Array IFF Parser Improved Salvage Targeting Computer Heavy Riot Gun Assault Rifle Battle Rifle Makeshift Shrapnel Gun Grenade Launcher Flail [Rating: 57] Favorites ----------- Power Subdweller Power Source Engine Subdweller Power Source Power Core Fission Core Propulsion Light Treads Treads Light Treads Wheel Wheel Utility Large Storage Unit Device Improved Heat Sink Storage Large Storage Unit Protection Tower Shield Weapon Assault Rifle Energy Gun EM Pulse Gun Energy Cannon Subdweller Beam Cannon Ballistic Gun Assault Rifle Impact Weapon Flail Slashing Weapon Greatsword Build | -11 -10 -10 -9 ------- Run | Yrd Mat Sub Scr Slots Evolved . | . . . . Power . | . . . . Propulsion . | . . . . Utility . | . . . . Weapon . | . . . . Parts Attached 26 | 6 3 7 10 Power 5 | 1 1 1 2 Engine 4 | 1 1 1 1 Core 1 | . . . 1 Reactor . | . . . . Propulsion 6 | 2 . 2 2 Treads 3 | 2 . . 1 Leg . | . . . . Wheel 3 | . . 2 1 Hover . | . . . . Flight . | . . . . Utility 5 | 1 2 . 2 Device 1 | . 1 . . Storage 2 | 1 1 . . Processor . | . . . . Hackware . | . . . . Protection 2 | . . . 2 Artifact . | . . . . Weapon 10 | 2 . 4 4 Energy Gun 1 | 1 . . . Energy Cannon 3 | . . 2 1 Ballistic Gun 4 | 1 . 2 1 Ballistic Cannon . | . . . . Launcher . | . . . . Special Weapon . | . . . . Impact Weapon 1 | . . . 1 Slashing Weapon 1 | . . . 1 Piercing Weapon . | . . . . Special Melee Weapon . | . . . . Unidentified Prototypes . | . . . . Parts Lost 12 | . 1 6 5 Power 3 | . 1 1 1 Propulsion 5 | . . 3 2 Utility 1 | . . . 1 Weapon 3 | . . 2 1 Highest Loss Streak 5 | . 1 2 5 To Critical Strikes 1 | . . . 1 Average Backups 9 | . 1 8 11 Power . | . . . 1 Propulsion 1 | . 1 1 . Utility 2 | . . 1 4 Weapon 4 | . . 4 5 Tool/Special . | . . . . Unused Backups 15 | . . . 15 Power 2 | . . . 2 Propulsion 1 | . . . 1 Utility 8 | . . . 8 Weapon 4 | . . . 4 Tool/Special . | . . . . Average Slot Usage (%) 87 | . 93 97 80 Engine 12 | . 14 13 12 Treads 11 | . 28 21 1 Wheel 9 | . . 4 13 Device 11 | . 7 14 10 Storage 13 | . 14 14 12 Protection 1 | . . . 3 Energy Gun 2 | . 14 2 . Energy Cannon 6 | . . 16 1 Ballistic Gun 16 | . 14 9 21 Peak Build Rating 57 | 6 9 19 57 Average Rating 18 | 4 7 13 23 On Entrance 7 | . 6 9 16 Avg Prop Armor Cover (%) 4 | . . 14 1 Naked Turns 1 | . . . 1 Heaviest Build 115 | 12 28 40 115 Greatest Support 40 | 40 40 40 30 Greatest Overweight (x) 11 | . . 2 11 Average Overweight (x) 1 | . . . 2 Largest Inventory Capacity 15 | 8 15 15 15 Average Capacity 14 | 6 14 15 14 Most Carried 15 | 2 2 15 15 Average Carried 11 | . 1 9 13 Final Capacity 15 | 8 15 15 5 Final Carried 15 | 2 2 15 5 Class Distribution -------------------- 100% | Mutant Dominant Class ---------------- Mutant | -10/Materials Mutant | -10/Subcaves Mutant | -9/Scraptown Resources | -11 -10 -10 -9 ----------- Run | Yrd Mat Sub Scr Matter Collected 522 | 245 76 181 20 Remotely . | . . . . Salvage Created 443 | . 139 304 . Parts 32 | . 7 25 . Haulers Intercepted . | . . . . Recyclers Shooed . | . . . . Parts Field Recycled . | . . . . Retrieved Matter . | . . . . Parts Self-Destructed 23 | . . 23 . Prevented . | . . . . Parts Restored . | . . . . Kills | -11 -10 -10 -9 ------- Run | Yrd Mat Sub Scr Combat Hostiles Destroyed 11 | . 2 9 . Guns 7 | . 2 5 . Cannons 4 | . . 4 . Classes Destroyed 6 | . 3 3 . Worker 1 | . 1 . . Turret 1 | . . 1 . Watcher 1 | . 1 . . Swarmer 2 | . . 2 . Grunt 2 | . 2 . . Subdweller 7 | . . 7 . Best Kill Streak 3 | . 2 3 . Combat Bots Only 3 | . 2 3 . Max Kills in Single Turn 1 | . 1 1 . Gunslinging . | . . . . Exploded . | . . . . Melee . | . . . . Uniques/NPCs Destroyed . | . . . . Combat | -11 -10 -10 -9 -------- Run | Yrd Mat Sub Scr Hostile Shots Fired 206 | . 15 108 83 Missed 74 | . 5 44 25 Hits 132 | . 10 64 58 Melee 13 | . . . 13 Projectile 119 | . 10 64 45 Critical Strikes 6 | . 1 . 5 Damage Taken 1649 | . 130 676 843 Core 250 | . 22 117 111 Absorbed by Shields . | . . . . Ignored by Resistances 82 | . . . 82 Core Remaining (%) 100 | 100 . . . Volleys Fired 48 | . 12 35 1 Largest 2 | . 2 2 1 Hottest 160 | . 60 160 23 Shots Fired 93 | . 24 68 1 Gun 60 | . 24 35 1 Cannon 33 | . . 33 . Launcher . | . . . . Special . | . . . . Kinetic 48 | . 12 35 1 Thermal 33 | . . 33 . Explosive . | . . . . Electromagnetic 12 | . 12 . . Robot Hit Streak 7 | . 3 7 . Robot Miss Streak 5 | . 2 5 . Penetration Max . | . . . . Secondary Targets . | . . . . Shots Hit Robots 49 | . 16 33 . Core Hits 26 | . 7 18 1 Critical Kills . | . . . . Critical Parts Destroyed . | . . . . Critical Strikes . | . . . . Melee Attacks 2 | . . . 2 Impact . | . . . . Slashing 2 | . . . 2 Piercing . | . . . . Sneak Attacks . | . . . . Combat Hostiles . | . . . . Follow-up Attacks . | . . . . Damage Inflicted 984 | . 275 708 1 Guns 689 | . 231 458 . Cannons 250 | . . 250 . Explosions 44 | . 44 . . Melee . | . . . . Ramming 1 | . . . 1 Kinetic 563 | . 105 458 . Thermal 294 | . 44 250 . Explosive . | . . . . Electromagnetic 126 | . 126 . . Impact . | . . . . Slashing . | . . . . Piercing . | . . . . Highest Corruption 2 | . . . 2 Average Corruption 1 | . . . 1 Corruption Purged . | . . . . Corruption Blocked . | . . . . Overload Shots . | . . . . Overflow Damage 8 | . . 8 . Projectiles 8 | . . 8 . Explosions . | . . . . Melee . | . . . . Knockbacks . | . . . . Impact . | . . . . Kinetic . | . . . . Secondary . | . . . . Self-Inflicted Damage . | . . . . Shots . | . . . . Rammed 2 | . . . 2 Targets Rammed 2 | . . . 2 Kicked . | . . . . Crushed . | . . . . Highest Temperature 48 | . 45 4 48 Average Temperature 23 | . 27 4 21 Received Heat Transfer 460 | . 90 198 172 Siege Activations . | . . . . Martial Activations . | . . . . Shielding Activations . | . . . . Robots Disrupted . | . . . . Combat Hostiles . | . . . . Robots Corrupted . | . . . . Combat Hostiles . | . . . . Parts Fried . | . . . . Impact Corruptions . | . . . . Robots Melted . | . . . . Combat Hostiles . | . . . . Parts Melted 1 | . . 1 . Heat Transferred 433 | . 100 333 . Parts Sabotaged . | . . . . Parts Stolen . | . . . . Parts Stripped . | . . . . Power Chain Reactions 1 | . 1 . . Alert | -11 -10 -10 -9 ------- Run | Yrd Mat Sub Scr Maximum Alert Level . | . . . . Low Security (%) 100 | 100 100 . . Level 1 . | . . . . Level 2 . | . . . . Level 3 . | . . . . Level 4 . | . . . . Level 5 . | . . . . High Security . | . . . . Max Security . | . . . . Peak Influence 49 | . 49 . . Initial . | . . . . Average 6 | . 7 . . Influence Increases 201 | . 81 120 . Destroy 0b10 Robot/C 100 | . 40 60 . Destroy 0b10 Robot/NC 10 | . 10 . . Destroy Leader 12 | . 12 . . Disable Machine 15 | . 15 . . Destroy Structure 4 | . 4 . . Lose Combat Pursuer 60 | . . 60 . Influence Decreases 201 | . 81 117 3 Entered New Map 3 | . . . 3 Time Decay 148 | . 71 77 . Lost Part 50 | . 10 40 . Squads Dispatched 1 | . 1 . . Investigation . | . . . . Extermination . | . . . . Reinforcement 1 | . 1 . . Assault . | . . . . Garrison . | . . . . Intercept . | . . . . Searches Triggered . | . . . . Construction Impeded . | . . . . Haulers Reinforced . | . . . . Active Scanning Responses . | . . . . Cargo Convoy Interrupts . | . . . . Stealth | -11 -10 -10 -9 --------- Run | Yrd Mat Sub Scr Distress Signals . | . . . . Communications Jammed . | . . . . Distress Signals . | . . . . Times Spotted 42 | . 5 15 22 Peak Tracking Total 24 | . 2 6 24 Tactical Retreats 3 | . . 3 . Traps | -11 -10 -10 -9 ------- Run | Yrd Mat Sub Scr Traps Triggered 1 | . . 1 . Indirectly . | . . . . Trap Hack Attempts . | . . . . Triggered . | . . . . Disarmed . | . . . . Reprogrammed . | . . . . Reused . | . . . . Traps Extracted . | . . . . Installed . | . . . . Triggered . | . . . . Most Traps Carried 1 | . . 1 . Machines | -11 -10 -10 -9 ---------- Run | Yrd Mat Sub Scr Machines Disabled 4 | . 1 2 1 Max in Single Turn 1 | . 1 1 1 Machines Repaired . | . . . . Machines Dismantled . | . . . . Machines Sabotaged . | . . . . Overloaded Fab Kills . | . . . . Hacking | -11 -10 -10 -9 --------- Run | Yrd Mat Sub Scr Machines Accessed 3 | . . 1 2 Terminals . | . . . . Fabricators . | . . . . Repair Stations . | . . . . Recycling Units . | . . . . Scanalyzers . | . . . . Garrison Access . | . . . . Total Hacks 9 | . . 1 8 Successful 9 | . . 1 8 Failed . | . . . . Catastrophic . | . . . . Database Lockouts . | . . . . Manual . | . . . . Terminals . | . . . . Fabricators . | . . . . Repair Stations . | . . . . Recycling Units . | . . . . Scanalyzers . | . . . . Garrison Access . | . . . . Terminal Hacks 9 | . . 1 8 Robot Analysis 7 | . . . 7 Proto ID Catalog 2 | . . 1 1 Fabricator Hacks . | . . . . Repair Station Hacks . | . . . . Recycling Unit Hacks . | . . . . Scanalyzer . | . . . . Garrison Access Hacks . | . . . . Unauthorized Hacks . | . . . . Terminals . | . . . . Fabricators . | . . . . Repair Stations . | . . . . Recycling Units . | . . . . Scanalyzers . | . . . . Garrison Access . | . . . . Data Cores Recovered . | . . . . Used . | . . . . Hacking Detections . | . . . . Full Trace Events . | . . . . Feedback Events . | . . . . Feedback Blocked . | . . . . Robot Schematics Acquired . | . . . . Robots Built . | . . . . Authchips . | . . . . Time . | . . . . Total Robot Build Rating . | . . . . Part Schematics Acquired 1 | . . . 1 Parts Built . | . . . . Authchips . | . . . . Time . | . . . . Total Part Build Rating . | . . . . Part Studies Acquired . | . . . . Parts Repaired . | . . . . Time . | . . . . Parts Recycled . | . . . . Recycled Matter . | . . . . Retrieved Matter . | . . . . Retrieved Components . | . . . . Parts Scanalyzed . | . . . . Part Schematics Acquired . | . . . . Parts Damaged . | . . . . Bothacking | -11 -10 -10 -9 ------------ Run | Yrd Mat Sub Scr Used RIF Installer . | . . . . Robots Hacked . | . . . . Non-combat . | . . . . Combat . | . . . . Robot Hacks Applied . | . . . . Relay Couplers Released . | . . . . Fabnet Peak Effective % . | . . . . Robots Rewired . | . . . . Allies Hacked . | . . . . Hacks Repelled . | . . . . Allies | -11 -10 -10 -9 -------- Run | Yrd Mat Sub Scr Total Allies . | . . . . Largest Group . | . . . . Highest-Rated Group . | . . . . Highest-Rated Ally . | . . . . Total Orders . | . . . . Ally Attacks . | . . . . Total Damage . | . . . . Kills . | . . . . Allies Corrupted . | . . . . Allies Melted . | . . . . Intel | -11 -10 -10 -9 ------- Run | Yrd Mat Sub Scr Active Infowar (turns) . | . . . . Robot Analysis Total 7 | . . . 7 Derelict Logs Recovered 6 | . . 2 4 Drone Launches . | . . . . Drone Recoveries . | . . . . Exploration | -11 -10 -10 -9 ------------- Run | Yrd Mat Sub Scr Turns Passed 4319 | 62 417 1465 2375 Spaces Moved 2997 | 34 147 920 1896 Core 14 | 2 . . 12 Treads 811 | 32 147 629 3 Legs . | . . . . Wheels 2172 | . . 291 1881 Hover . | . . . . Flight . | . . . . Fastest Speed 50 | 50 160 107 50 Average Speed 131 | 153 160 144 122 Slowest Speed 320 | 160 160 160 320 Overloaded Moves . | . . . . Propulsion Burnouts . | . . . . Robots Hopped . | . . . . Potential Cave-ins . | . . . . Cave-ins Triggered . | . . . . Exploration Rate (%) 44 | 3 39 53 81 Regions Visited 3 Branch Regions 2 Pre-discovered Areas 3 | . . 1 2 Known Exits Taken . | . . . . Unknown Exits Taken 3 | 1 1 1 . Scrap Searched 14 | . . 10 4 Spaces Dug 1 | . . . 1 Terrain Destroyed 13 | . 3 9 1 Melee 1 | . . . 1 Projectile 9 | . . 9 . AOE 3 | . 3 . . Terrain Rammed . | . . . . Walls Destroyed . | . . . . Machines Disabled . | . . . . Actions | -11 -10 -10 -9 --------- Run | Yrd Mat Sub Scr Total 3263 | 41 304 982 1936 Wait 143 | . 141 1 1 Move 2994 | 33 146 919 1896 Hop . | . . . . Pick Up 35 | 2 1 17 15 Fast Attach 15 | 6 2 . 7 Attach 10 | . 1 5 4 Detach 3 | . . . 3 Swap 4 | . . 4 . Drop 7 | . 1 1 5 Fire 48 | . 12 35 1 Melee 2 | . . . 2 Ram . | . . . . Kick . | . . . . Crush 2 | . . . 2 Escape Stasis . | . . . . Rewire . | . . . . Trap . | . . . . Miscellaneous . | . . . . Route ------- -11/Scrapyard -10/Materials (discovered 2 exits: [*Mat] / *Sub) -10/Subcaves (discovered 3 exits: [*Mat] / [*Rec] / *Scr) -9/Scraptown (discovered 1 exit: [*Fac]) History --------- Turn | Location | Event 9 | -11/Scrapyard | Discovered new exit (range 14) 63 | -11/Scrapyard | Entered Materials 296 | -10/Materials | Discovered new exit (range 12) 300 | -10/Materials | Build established: Mutant 474 | -10/Materials | Discovered new exit (range 4) 480 | -10/Materials | Entered Subcaves 481 | -10/Subcaves | Approached by a straggling Scientist 496 | -10/Subcaves | Learned Materials interactive machine intel 500 | -10/Subcaves | Learned location of Zion (-7) 680 | -10/Subcaves | Scientist uncovered a shortcut to Scraptown 932 | -10/Subcaves | Discovered new exit (range 10) 1208 | -10/Subcaves | Visited 4L-MR0's lab 1270 | -10/Subcaves | Found Tower Shield 1506 | -10/Subcaves | Discovered new exit (range 14) 1737 | -10/Subcaves | Shifting Twisted Machinery released Sub. Power Source 1748 | -10/Subcaves | A swath of the cavern ceiling suddenly collapsed 1761 | -10/Subcaves | Core integrity fell below 50% 1945 | -10/Subcaves | Entered Scraptown 1981 | -9/Scraptown | Heard Great Nut preacher, LISTEN AND RECITE! 1992 | -9/Scraptown | Visited Comm Corps 2005 | -9/Scraptown | Visited Cave Peace 2033 | -9/Scraptown | Visited Assassins FH 2049 | -9/Scraptown | Visited TADAMA 2094 | -9/Scraptown | Visited Shadow of the Wyrm 2107 | -9/Scraptown | Visited SPCMW 2181 | -9/Scraptown | Visited IN-MT5's Study 2258 | -9/Scraptown | Scanned Subdweller tech in exchange for log data 2261 | -9/Scraptown | Learned location of 2 exits from Proximity Caves 2264 | -9/Scraptown | Learned location of Extension (-4) 2266 | -9/Scraptown | Learned Research terminal intel 2349 | -9/Scraptown | Visited UFD Registry 2349 | -9/Scraptown | Registered with UFD as "Cargothruster" 2414 | -9/Scraptown | Visited Curators Association 2434 | -9/Scraptown | Visited Science Guys 2476 | -9/Scraptown | Visited Scrapoid Pod Storage 2491 | -9/Scraptown | Visited Science Testing Area 2511 | -9/Scraptown | Visited Junk Repository 2532 | -9/Scraptown | Visited Infowarlord's Domain 2550 | -9/Scraptown | Visited Analyses Database 2768 | -9/Scraptown | Discovered new exit (range 13) 2925 | -9/Scraptown | Visited Junk Repository 3077 | -9/Scraptown | Delivered Scrap Shield to a Scientist 3748 | -9/Scraptown | Attached Tower Shield, gained temporary slots: Power, Propulsion x2, Utility x2, Weapon x2 3932 | -9/Scraptown | Found Exp. Sensor Array 4273 | -9/Scraptown | Attacked by Scraptown defenders 4317 | -9/Scraptown | Core integrity fell below 20% 4320 | -9/Scraptown | Destroyed by E0-6Z1(h) with Bolt Gun Last Messages --------------- 04307_ Critical hit (Impale). 04308_ Bolt penetrates Wall. 04308_ Tower Shield destroyed. 04310_ Bolt penetrates Wall. 04311_ Temporary Power slot lost. 04311_ Temporary Propulsion slot lost. 04311_ Temporary Utility slot lost. 04311_ Temporary Weapon slot lost. 04311_ Slammed into RN-F9T(j). 04311_ Fission Core destroyed. 04312_ Slammed into RN-F9T(j). 04313_ Bolt penetrates Wall. 04314_ Critical hit (Burn: +50). 04315_ Penetrated by Bolt. 04317_ Lgt. Treads destroyed. 04317_ Wheel destroyed. 04317_ FJ-ZL3(p) destroyed. 04319_ Critical hit (Destroy). 04319_ Autogun destroyed. 04320_ Triborg activates siege mode. Map ----- +----------------------------------------------------+ | #?#" """ "#" " "#???????????????????????? | | ###" "#" "#???????????????????????? | | ##"""""" ""#"" """"""#???????????????????????? | | #???????????????????????? | | #???????????????????????? | | #???????????????????????? | | ##########"" """"#####???????????????????????? | | ##????????#" !!%"#???????????????????????????" | | #########?#" !*""#??????????????????????????#" | | """"""""#?#" """#??????????????????????????# | | " ""#?#" """#???????????????????????????# | | "#?#"""""""#???????????????????????????? | | " ""#?#########???????????????????????????? | | """"""""#?????????????????????????????????????? | | ##"""####?????????????????????????????????????? | | ############?????????####?????????????????????? | | #?# #??#?????? #?????????????????????? | | ### ##?# ? #???????##########????? | | ##" "#?# """"" #???????#""""""""#????? | | ##""""""""""### """"" #???????#" X " ""#????? | | #" "## """"" #???????#" ""#????? | | #" "## #???????#"" """#????? | | #" "#?? #???????# #????? | | # #???? #???????# #????? | | # #?????? #???????####### ##????? | | ########## ###########@####???????##### ####### | | ! #???????#"""" """"""" | | !%= #???????#" | | !! #???????#" | | #???????#" | | #???????#" | | ################# x #???#####" | | #???????????????#Er #???#"""" """""" | | #???????????????# #???#"""" """""" | | #??????????????##xh #???#"""" ""#### | | #?????##########!rjx #???#"""" ""#??? | | #?????#""""""/=l#g #???#"""" ""#?? | | #?????#" """[[g*TT g ###?#"""" ""#? | | #?????#" %]%=#TTp ""#"#"""" ""# " | | #?????#" !" """"#"""" ""# " | | #?????#"" " ""#######" "" | | #?????#" " ###?????#" "" | | #?????#" """""" # #########" ""# " | | #?????## # " ""# " | | #??????# # " # ""#? | | #??????########## ""#?? | | #???????????????# ""#??? | | ################# ""#### | | """""" | | """""" | +----------------------------------------------------+ Best States ------------- Heat Dissipation 39 Energy Generation 31 Energy Capacity 510 Matter Stores 300 Matter Capacity 300 Sight Range 16 Terrain Scan Density 10 Armor Coverage 2225 Resistance: KI 30 Evasion (%) 50 Recoil Reduction 2 Item Schematics ----------------- IN-MT5's Pitchfork "Insurrection" | -9/Scraptown | Archive Robot Schematics ------------------ None Fabricated ------------ Nothing Repaired ---------- Nothing Studied --------- None Alien Tech Used ----------------- None Achievements -------------- None Challenges ------------ None Game ------ Seed MetafiberPlexusDrivehammer Manual? 0 Play Time 00:16:58 Cumulative 414.5 hours Start 2025.12.16 @ 21:36:00 End 2025.12.16 @ 21:51:40 Sessions 1 Manual Loads 0 Difficulty Rogue Special Mode None Game No. 376 Rogue 340 Adventurer 36 Explorer 0 Win Type - Total 16 Types 7/0/9/0/0/0/0/0/0/0 Lore% 72 Gallery% 85 Achievement% 63 Wizard Run 0 Options --------- Layout 0 ASCII 0 Keyboard 0 Movement Mouse Keybinds 0 Fullscreen 1 Font 18/SmallcapsGlow Map View 76x50 Zoom Use 0% Tactical HUD 1 Map Filters NONE Filters NONE Steam 1 RUN: 9369fcbc-4fea-4724-987c-7a914d800c52